bitfinex/quotes_BTCUSD_20250826
["timestamp","ask_amount","ask_price","bid_price","bid_amount"]
[1756194320836,1.25436191,110490.0,110480.0,0.001]
[1756194321796,1.25212191,110490.0,110480.0,0.001]
[1756194322012,1.24361878,110490.0,110480.0,0.001]
[1756194322416,0.18102824,110480.0,110470.0,0.00297]
[1756194322631,0.18106101,110460.0,110450.0,0.2573444]
[1756194322834,0.76866224,110470.0,110450.0,0.51135642]
[1756194323032,0.76866224,110470.0,110460.0,0.18106101]
[1756194323257,0.76866224,110470.0,110460.0,0.18602101]
[1756194323466,0.77769727,110480.0,110460.0,0.18602101]
[1756194323663,0.93825727,110480.0,110460.0,0.18305101]
[1756194323873,0.93825727,110480.0,110470.0,0.00297]
[1756194324119,0.18104462,110470.0,110460.0,0.18106101]
[1756194324334,0.18104462,110470.0,110460.0,0.18602101]
[1756194325096,0.18302462,110470.0,110450.0,0.51842029]
[1756194325298,0.18302462,110470.0,110460.0,0.18305101]
[1756194325542,0.77064224,110470.0,110460.0,0.001]
[1756194325760,0.77064224,110470.0,110450.0,0.00298]
[1756194325761,0.18106101,110460.0,110450.0,0.00298]
[1756194325966,0.18106101,110460.0,110450.0,0.18316741]
[1756194325967,0.77065863,110460.0,110450.0,0.18316741]
[1756194326176,0.77065863,110460.0,110450.0,0.00209]
[1756194326602,0.18107741,110450.0,110440.0,0.4232721]
[1756194326815,0.18107741,110450.0,110440.0,0.51682412]
[1756194327468,0.77067503,110450.0,110430.0,0.4527902]
[1756194327690,0.77067503,110450.0,110440.0,0.1810938]
[1756194327905,0.77072267,110450.0,110430.0,0.43611222]
[1756194328127,0.77072267,110450.0,110440.0,0.1881638]
[1756194328560,0.77072267,110450.0,110440.0,0.00507]
[1756194328778,0.77072267,110450.0,110430.0,0.43611222]
[1756194328990,0.77072267,110450.0,110440.0,0.002]
[1756194329461,0.77312267,110450.0,110440.0,0.002]
[1756194329698,0.80034667,110450.0,110440.0,0.002]
[1756194329925,0.95846667,110450.0,110440.0,0.002]
[1756194330135,0.1810938,110440.0,110430.0,0.1635]
[1756194330311,0.1830738,110440.0,110430.0,0.00507]
[1756194330566,0.1830738,110440.0,110430.0,0.00707]
[1756194330779,0.1830738,110440.0,110430.0,0.00209]
[1756194331016,0.77069142,110440.0,110430.0,0.1832002]
[1756194331201,0.1811102,110430.0,110420.0,0.4142266]
[1756194331411,0.1811102,110430.0,110420.0,0.50777862]
[1756194331634,0.76871142,110440.0,110420.0,0.50777862]
[1756194331846,0.3416138,110440.0,110420.0,0.50777862]
[1756194331991,0.3688408,110440.0,110430.0,0.00298]
[1756194332208,0.1811102,110430.0,110420.0,0.50568862]
[1756194332407,0.1811102,110430.0,110420.0,0.50777862]
[1756194332835,0.1811102,110430.0,110420.0,0.32665202]
[1756194333036,0.2083208,110440.0,110420.0,0.50777862]
[1756194333399,0.81050529,110440.0,110430.0,0.00298]
[1756194333654,0.81050529,110440.0,110420.0,0.50479862]
[1756194333655,0.1811102,110430.0,110420.0,0.32158202]
[1756194333881,0.1811266,110420.0,110410.0,0.34504301]
[1756194334112,0.78331109,110420.0,110410.0,0.43859503]
[1756194334331,0.78529109,110420.0,110410.0,0.25745202]
[1756194334768,0.1811266,110420.0,110410.0,0.43859503]
[1756194335193,0.1811266,110420.0,110410.0,0.25745202]
[1756194335428,0.1831166,110420.0,110410.0,0.26145202]
[1756194336042,0.1831166,110420.0,110410.0,0.16492]
[1756194336256,0.1831166,110420.0,110410.0,0.35113301]
[1756194336571,0.3416302,110430.0,110420.0,0.1811266]
[1756194336766,0.1811266,110420.0,110410.0,0.34706301]
[1756194336997,0.3416302,110430.0,110420.0,0.00507]
[1756194337182,0.3436102,110430.0,110420.0,0.00507]
[1756194337451,0.1811266,110420.0,110410.0,0.1689]
[1756194337668,0.1831066,110420.0,110410.0,0.34900301]
[1756194337890,0.1811266,110420.0,110410.0,0.35109301]
[1756194338375,0.1811266,110420.0,110410.0,0.34709301]
[1756194338597,0.76933336,110430.0,110410.0,0.34709301]
[1756194338802,0.1811266,110420.0,110410.0,0.34709301]
[1756194339132,0.92985336,110430.0,110410.0,0.34709301]
[1756194339343,0.3416302,110430.0,110410.0,0.34709301]
[1756194339564,0.92985336,110430.0,110410.0,0.34709301]
[1756194339784,0.1811266,110420.0,110410.0,0.34709301]
[1756194340013,0.1811266,110420.0,110410.0,0.35109301]
[1756194340222,0.1811266,110420.0,110410.0,0.35209301]
[1756194340429,0.92985336,110430.0,110410.0,0.35209301]
[1756194340640,0.92985336,110430.0,110420.0,0.1841066]
[1756194340848,0.37785549,110440.0,110430.0,0.1811102]
[1756194341062,0.0551652,110440.0,110430.0,0.1861802]
[1756194341286,0.236259,110440.0,110430.0,0.3466602]
[1756194342189,0.236259,110440.0,110430.0,0.1861802]
[1756194342190,0.23625858,110440.0,110430.0,0.1861802]
[1756194342431,0.24471417,110440.0,110430.0,0.1861802]
[1756194342672,0.1811102,110430.0,110420.0,0.3445866]
[1756194342887,0.1811102,110430.0,110420.0,0.43813862]
[1756194343094,0.80499947,110440.0,110430.0,0.1811102]
[1756194343304,0.83293514,110440.0,110430.0,0.1861802]
[1756194343976,0.24471198,110440.0,110430.0,0.1871802]
[1756194344193,0.06361818,110440.0,110430.0,0.1871802]
[1756194344847,0.06361905,110440.0,110430.0,0.1871802]
[1756194345901,0.03639205,110440.0,110430.0,0.27864222]
[1756194346314,0.00845551,110440.0,110430.0,0.27864222]
[1756194348625,0.18954931,110440.0,110430.0,0.27864222]
[1756194349073,0.19152931,110440.0,110430.0,0.3476202]
[1756194349287,0.19152931,110440.0,110430.0,0.16651]
[1756194350088,0.18954931,110440.0,110430.0,0.3476202]
[1756194350978,0.18954931,110440.0,110430.0,0.16651]
[1756194351809,0.37148375,110440.0,110430.0,0.001]
[1756194352014,0.95970691,110440.0,110430.0,0.001]
[1756194352466,0.9681747,110440.0,110430.0,0.001]
[1756194353192,0.97452799,110440.0,110430.0,0.001]
[1756194354030,1.01582183,110440.0,110430.0,0.001]
[1756194354877,1.10726712,110440.0,110430.0,0.001]
[1756194355314,1.13965892,110440.0,110430.0,0.001]
[1756194355546,1.756225,110440.0,110430.0,0.001]
[1756194355780,1.66477971,110440.0,110430.0,0.001]
[1756194356458,1.80153,110440.0,110430.0,0.001]
[1756194356656,1.8501142,110440.0,110430.0,0.001]
[1756194357077,2.1901142,110440.0,110430.0,0.001]
[1756194357569,2.15773287,110440.0,110430.0,0.001]
[1756194357778,2.17518189,110440.0,110430.0,0.001]
[1756194357983,0.1811266,110420.0,110410.0,0.0004]
[1756194358193,1.02161591,110420.0,110410.0,0.0004]
[1756194359332,1.07719326,110420.0,110410.0,0.0014]
[1756194359565,1.10976946,110420.0,110410.0,0.0014]
[1756194360000,1.44976946,110420.0,110410.0,0.0014]
[1756194360216,1.39424211,110420.0,110410.0,0.0014]
[1756194361080,1.36243401,110420.0,110410.0,0.0014]
[1756194361298,1.39425232,110420.0,110410.0,0.0014]
[1756194361733,1.39425296,110420.0,110410.0,0.0014]
[1756194361923,1.50986711,110420.0,110410.0,0.0014]
[1756194362426,1.47873193,110420.0,110410.0,0.0014]
[1756194363083,1.57017722,110420.0,110410.0,0.0014]
[1756194363302,1.52931613,110420.0,110410.0,0.0014]
[1756194363520,1.49673993,110420.0,110410.0,0.0014]
[1756194364209,1.33632993,110420.0,110410.0,0.0014]
[1756194364428,1.53160818,110420.0,110410.0,0.0014]
[1756194364643,1.37128818,110420.0,110410.0,0.0014]
[1756194364875,1.48061398,110420.0,110410.0,0.0014]
[1756194365091,1.48261398,110420.0,110410.0,0.0014]
[1756194365313,1.50701473,110420.0,110410.0,0.0014]
[1756194365972,1.34669473,110420.0,110410.0,0.0014]
[1756194366196,1.48757571,110420.0,110410.0,0.00665]
[1756194366425,0.76117082,110420.0,110410.0,0.00665]
[1756194366655,0.76117082,110420.0,110410.0,0.0014]
[1756194366656,1.35706036,110420.0,110410.0,0.0014]
[1756194366877,1.45937839,110420.0,110410.0,0.0014]
[1756194367304,1.47682741,110420.0,110410.0,0.0014]
[1756194367774,1.50937566,110420.0,110410.0,0.0014]
[1756194368002,1.48497491,110420.0,110410.0,0.0014]
[1756194369328,1.34903493,110420.0,110410.0,0.0014]
[1756194369550,1.53678099,110420.0,110410.0,0.0014]
[1756194369945,1.53672835,110420.0,110410.0,0.0014]
[1756194370471,1.53672555,110420.0,110410.0,0.0014]
[1756194371309,1.62817084,110420.0,110410.0,0.0014]
[1756194371748,1.53672555,110420.0,110410.0,0.0014]
[1756194371966,1.33272497,110420.0,110410.0,0.0014]
[1756194372183,0.88503585,110420.0,110410.0,0.00665]
[1756194372399,1.2807477,110420.0,110410.0,0.00665]
[1756194372625,1.42410262,110420.0,110410.0,0.00665]
[1756194373478,0.67528252,110420.0,110410.0,0.00665]
[1756194373694,1.3326406,110420.0,110410.0,0.00665]
[1756194373933,0.7441005,110420.0,110410.0,0.00665]
[1756194374152,0.71972048,110420.0,110410.0,0.00665]
[1756194374367,1.30826058,110420.0,110410.0,0.00665]
[1756194374789,0.71971667,110420.0,110410.0,0.00665]
[1756194375000,1.30825671,110420.0,110410.0,0.00665]
[1756194375258,1.29979804,110420.0,110410.0,0.00665]
[1756194376097,1.13951804,110420.0,110410.0,0.00665]
[1756194376328,0.73845194,110420.0,110410.0,0.00665]
[1756194376510,1.32699204,110420.0,110410.0,0.00665]
[1756194377627,1.32064514,110420.0,110410.0,0.00665]
[1756194377858,0.23186504,110420.0,110410.0,0.18779301]
[1756194378073,0.23186504,110420.0,110410.0,0.00665]
[1756194378074,0.39168693,110420.0,110410.0,0.00665]
[1756194378307,0.98022703,110420.0,110410.0,0.00665]
[1756194378533,0.39168693,110420.0,110410.0,0.00665]
[1756194378984,0.39168693,110420.0,110410.0,0.18779301]
[1756194379206,0.02350444,110420.0,110410.0,0.18779301]
[1756194379656,0.02350444,110420.0,110410.0,0.27925503]
[1756194379657,0.004,110420.0,110410.0,0.27925503]
[1756194380134,0.002,110420.0,110410.0,0.27925503]
[1756194380842,0.18111146,110430.0,110420.0,0.1811266]
[1756194381067,0.20062467,110430.0,110420.0,0.1831466]
[1756194381283,0.18111146,110430.0,110420.0,0.1863766]
[1756194382000,0.18111146,110430.0,110420.0,0.00525]
[1756194382490,0.76965156,110430.0,110420.0,0.00825]
[1756194382912,0.77163156,110430.0,110420.0,0.00502]
[1756194383134,0.76965156,110430.0,110420.0,0.00825]
[1756194383574,0.18111146,110430.0,110420.0,0.00825]
[1756194383763,0.18111146,110430.0,110420.0,0.00925]
[1756194386730,0.16016,110430.0,110420.0,0.1903766]
[1756194386957,0.37693731,110440.0,110430.0,0.1811102]
[1756194387180,0.16861551,110440.0,110430.0,0.1831902]
[1756194387411,0.00845551,110440.0,110430.0,0.1862802]
[1756194387871,0.00845551,110440.0,110430.0,0.86628232]
[1756194388328,0.00845551,110440.0,110430.0,1.02644232]
[1756194388535,0.00845551,110440.0,110430.0,1.02844232]
[1756194390763,0.00845551,110440.0,110430.0,1.09808232]
[1756194391224,0.00845551,110440.0,110430.0,1.10008232]
[1756194391447,0.00845551,110440.0,110430.0,1.09808232]
[1756194391671,0.00845551,110440.0,110430.0,1.10204232]
[1756194391892,0.00845551,110440.0,110430.0,0.94192232]
[1756194392105,0.00845551,110440.0,110430.0,1.10204232]
[1756194393205,0.00845551,110440.0,110430.0,0.95937134]
[1756194393420,0.00845551,110440.0,110430.0,1.11945134]
[1756194394271,0.00845551,110440.0,110430.0,1.45945134]
[1756194395122,0.18104479,110470.0,110460.0,0.18106101]
[1756194395123,0.00905223,110470.0,110460.0,0.18106101]
[1756194395316,0.19207702,110470.0,110460.0,0.3416182]
[1756194395764,0.18302479,110470.0,110460.0,0.3467882]
[1756194396490,0.18302479,110470.0,110460.0,0.1815382]
[1756194396704,0.18302479,110470.0,110460.0,0.1867082]
[1756194397175,0.86522706,110480.0,110470.0,0.18004462]
[1756194397379,0.86720706,110480.0,110470.0,0.18004462]
[1756194397569,0.27866696,110480.0,110460.0,0.1846282]
[1756194397718,0.18104462,110470.0,110460.0,0.3446682]
[1756194397931,0.18104462,110470.0,110460.0,0.3467482]
[1756194398135,0.86522706,110480.0,110460.0,0.3467482]
[1756194398352,0.18302462,110470.0,110460.0,0.1867082]
[1756194399365,0.00198,110470.0,110460.0,0.1867082]
[1756194400018,0.001,110470.0,110460.0,0.1867082]
[1756194400442,0.77268472,110470.0,110460.0,0.00047719]
[1756194400681,0.77268472,110470.0,110460.0,0.1815382]
[1756194400901,0.18414462,110470.0,110460.0,0.00047719]
[1756194401132,0.18414462,110470.0,110460.0,0.1867082]
[1756194401336,0.18414462,110470.0,110460.0,0.1815382]
[1756194401537,0.18414462,110470.0,110460.0,0.00047719]
[1756194401538,0.77496472,110470.0,110460.0,0.00047719]
[1756194401986,0.80218572,110470.0,110460.0,0.00047719]
[1756194403793,0.96218572,110470.0,110460.0,0.00047719]
[1756194405106,0.98164378,110470.0,110460.0,0.00047719]
[1756194406316,0.81936378,110470.0,110460.0,0.00047719]
[1756194406492,0.97936378,110470.0,110460.0,0.00047719]
[1756194407111,0.98781554,110470.0,110460.0,0.00047719]
[1756194407327,0.99010554,110470.0,110460.0,0.00047719]
[1756194408018,0.98165378,110470.0,110460.0,0.00047719]
[1756194408222,0.39927916,110470.0,110460.0,0.00047719]
[1756194408428,0.99645367,110470.0,110460.0,0.00047719]
[1756194409283,0.83645367,110470.0,110460.0,0.00047719]
[1756194409490,0.99412367,110470.0,110460.0,0.00255719]
[1756194409728,0.99412367,110470.0,110460.0,0.00564719]
[1756194409953,0.83416367,110470.0,110460.0,0.00047719]
[1756194410145,0.99412367,110470.0,110460.0,0.00047719]
[1756194410801,0.99641367,110470.0,110460.0,0.00047719]
[1756194411215,0.99412367,110470.0,110460.0,0.00047719]
[1756194411422,1.03193888,110470.0,110460.0,0.00047719]
[1756194412080,1.03422888,110470.0,110460.0,0.00047719]
[1756194412300,1.12567417,110470.0,110460.0,0.00047719]
[1756194414229,1.03422888,110470.0,110460.0,0.00047719]
[1756194414445,1.48313992,110470.0,110460.0,0.00047719]
[1756194414657,1.50825564,110470.0,110460.0,0.00047719]
[1756194414948,1.52429159,110470.0,110460.0,0.00047719]
[1756194415847,1.52329159,110470.0,110460.0,0.00047719]
[1756194416060,1.36333159,110470.0,110460.0,0.00047719]
[1756194416271,1.52825159,110470.0,110460.0,0.00047719]
[1756194416700,1.52625159,110470.0,110460.0,0.00047719]
[1756194417122,1.52825159,110470.0,110460.0,0.00047719]
[1756194417332,1.47966739,110470.0,110460.0,0.00047719]
[1756194417568,1.49136864,110470.0,110460.0,0.00047719]
[1756194417778,1.5146853,110470.0,110460.0,0.00047719]
[1756194418207,1.51468523,110470.0,110460.0,0.00047719]
[1756194418416,1.51468523,110470.0,110420.0,0.00324]
[1756194418417,0.1810938,110440.0,110420.0,0.00324]
[1756194418654,0.76925581,110430.0,110420.0,0.00328764]
[1756194418877,0.76925581,110430.0,110420.0,0.00542764]
[1756194419087,0.78879062,110430.0,110420.0,0.00542764]
[1756194419524,0.94871062,110430.0,110420.0,0.00542764]
[1756194419737,0.38780878,110430.0,110420.0,0.00542764]
[1756194419976,0.38780878,110430.0,110420.0,0.00642764]
[1756194420632,0.97593962,110430.0,110420.0,0.00204764]
[1756194420859,0.9850149,110430.0,110420.0,0.00204764]
[1756194421627,0.23696406,110430.0,110420.0,0.00742764]
[1756194421846,0.38776878,110430.0,110420.0,0.18855424]
[1756194422065,0.22788878,110430.0,110420.0,0.18855424]
[1756194422274,0.20835397,110430.0,110420.0,0.18855424]
[1756194422487,0.20835397,110430.0,110420.0,0.18955424]
[1756194422721,0.2083392,110430.0,110420.0,0.18955424]
[1756194423146,0.2083392,110430.0,110420.0,0.00842764]
[1756194424439,0.90996613,110440.0,110420.0,0.00842764]
[1756194424655,0.76924104,110430.0,110420.0,0.00842764]
[1756194424858,0.77122104,110430.0,110420.0,0.00842764]
[1756194425299,0.77122104,110430.0,110420.0,0.00642764]
[1756194425513,0.76924104,110430.0,110420.0,0.00542764]
[1756194425734,0.58813084,110430.0,110420.0,0.00642764]
[1756194425952,0.1811102,110430.0,110420.0,0.00542764]
[1756194426387,0.1811102,110430.0,110420.0,0.00642764]
[1756194427790,0.3409902,110430.0,110420.0,0.18755424]
[1756194428219,0.1811102,110430.0,110420.0,0.18755424]
[1756194428426,0.94615149,110440.0,110420.0,0.18755424]
[1756194428636,0.1811102,110430.0,110420.0,0.18431424]
[1756194429341,0.1811102,110430.0,110420.0,0.00642764]
[1756194429769,0.1811102,110430.0,110420.0,0.18755424]
[1756194430227,0.19814065,110440.0,110420.0,0.18755424]
[1756194430409,0.19814065,110440.0,110430.0,0.1843502]
[1756194430645,0.1800886,110440.0,110430.0,0.1864902]
[1756194430858,0.18109217,110450.0,110430.0,0.27795222]
[1756194431061,0.1810938,110440.0,110430.0,0.27471222]
[1756194431616,0.1810938,110440.0,110430.0,0.27795222]
[1756194431829,0.95628801,110450.0,110430.0,0.27795222]
[1756194431830,0.36815717,110450.0,110430.0,0.27795222]
[1756194432081,0.37662926,110450.0,110440.0,0.1843338]
[1756194432216,0.36815717,110450.0,110440.0,0.1864738]
[1756194432819,0.36815717,110450.0,110440.0,0.00538]
[1756194433031,0.36815717,110450.0,110440.0,0.1864738]
[1756194433239,0.36915717,110450.0,110440.0,0.00538]
[1756194433643,0.36915717,110450.0,110440.0,0.00638]
[1756194434061,0.36815717,110450.0,110440.0,0.00638]
[1756194434488,0.36815717,110450.0,110440.0,0.1874738]
[1756194434704,0.20831717,110450.0,110440.0,0.1874738]
[1756194436219,0.18106142,110460.0,110450.0,0.18107062]
[1756194436435,0.34090142,110460.0,110450.0,0.18321062]
[1756194436677,0.20826662,110470.0,110460.0,0.18106101]
[1756194436936,0.36810662,110470.0,110460.0,0.18644101]
[1756194437579,0.027222,110470.0,110460.0,0.18644101]
[1756194437794,0.18104462,110470.0,110460.0,0.18644101]
[1756194438006,0.34084462,110470.0,110460.0,0.18644101]
[1756194438223,0.18106101,110460.0,110450.0,0.34411062]
[1756194438438,0.18304101,110460.0,110450.0,0.09684202]
[1756194438653,0.94268136,110460.0,110450.0,0.18645741]
[1756194439299,0.94466136,110460.0,110450.0,0.00538]
[1756194439519,0.18107741,110450.0,110440.0,0.19338849]
[1756194439732,0.18107741,110450.0,110440.0,0.43773582]
[1756194439946,0.18107741,110450.0,110440.0,0.27793582]
[1756194440162,0.78289776,110450.0,110440.0,0.1864738]
[1756194440588,0.78289776,110450.0,110440.0,0.00538]
[1756194440821,0.1810938,110440.0,110430.0,0.35320571]
[1756194441044,0.78289776,110450.0,110430.0,0.44685537]
[1756194441238,0.78289776,110450.0,110440.0,0.00324]
[1756194441487,0.18107741,110450.0,110440.0,0.1874738]
[1756194441945,0.97895641,110460.0,110440.0,0.1884738]
[1756194442266,0.97895641,110460.0,110440.0,0.1874738]
[1756194442790,0.97895641,110460.0,110450.0,0.00324]
[1756194442993,0.98093641,110460.0,110450.0,0.00324]
[1756194443195,0.98093641,110460.0,110450.0,0.00538]
[1756194443700,0.98093641,110460.0,110450.0,0.18645741]
[1756194443896,0.027222,110460.0,110450.0,0.34621741]
[1756194444097,0.15976,110470.0,110460.0,0.18106101]
[1756194444327,0.34080462,110470.0,110460.0,0.18644101]
[1756194444549,0.15976,110470.0,110460.0,0.18644101]
[1756194444882,0.97895677,110480.0,110460.0,0.18644101]
[1756194445089,0.9874277,110480.0,110460.0,0.18644101]
[1756194445517,0.001,110470.0,110460.0,0.18644101]
[1756194445930,0.97895677,110480.0,110460.0,0.18644101]
[1756194446164,0.55937642,110480.0,110470.0,0.18402462]
[1756194446368,1.32293677,110480.0,110460.0,0.18404101]
[1756194446578,0.18104462,110470.0,110460.0,0.18404101]
[1756194446817,0.18104462,110470.0,110460.0,0.18613101]
[1756194447639,0.18204462,110470.0,110460.0,0.18613101]
[1756194447842,0.18402462,110470.0,110460.0,0.18613101]
[1756194448002,0.18204462,110470.0,110460.0,0.18613101]
[1756194449862,0.18402462,110470.0,110460.0,0.18613101]
[1756194450087,0.18402462,110470.0,110450.0,0.2815933]
[1756194450088,0.18106101,110460.0,110450.0,0.27551943]
[1756194450310,0.78386497,110470.0,110460.0,0.18106101]
[1756194450533,0.78386497,110470.0,110460.0,0.18315101]
[1756194450759,0.78386497,110470.0,110460.0,0.18613101]
[1756194450982,0.78286497,110470.0,110460.0,0.18613101]
[1756194451202,0.78483497,110470.0,110460.0,0.18613101]
[1756194451425,0.18106101,110460.0,110450.0,0.43523943]
[1756194451648,0.18106101,110460.0,110450.0,0.43832943]
[1756194452621,0.18106101,110460.0,110450.0,0.43732943]
[1756194453832,0.18106101,110460.0,110450.0,0.43728943]
[1756194454391,0.78286497,110470.0,110450.0,0.43728943]
[1756194454774,0.78286497,110470.0,110450.0,0.43828943]
[1756194455200,0.18106101,110460.0,110450.0,0.43828943]
[1756194455621,0.18106101,110460.0,110450.0,0.43728943]
[1756194456063,0.78386497,110470.0,110450.0,0.43728943]
[1756194456279,0.78386497,110470.0,110460.0,0.18106101]
[1756194456489,0.18403462,110470.0,110460.0,0.18106101]
[1756194456713,0.18403462,110470.0,110460.0,0.18613101]
[1756194456937,0.78585497,110470.0,110460.0,0.18613101]
[1756194457232,0.78485497,110470.0,110460.0,0.18613101]
[1756194457489,0.15964,110470.0,110460.0,0.18613101]
[1756194457710,0.34068462,110470.0,110460.0,0.18613101]
[1756194458163,0.34168462,110470.0,110460.0,0.18613101]
[1756194458387,0.001,110470.0,110460.0,0.18613101]
[1756194461108,0.001,110470.0,110460.0,0.87941338]
[1756194461909,0.15964,110490.0,110480.0,0.18102824]
[1756194462127,0.00047687,110490.0,110480.0,0.18609824]
[1756194464297,0.18446872,110490.0,110480.0,0.34569824]
[1756194464860,0.00147687,110490.0,110480.0,0.34569824]
[1756194465518,0.18248872,110490.0,110480.0,0.34565824]
[1756194465734,0.18454872,110490.0,110480.0,0.15956]
[1756194466000,0.18102824,110480.0,110470.0,0.34060462]
[1756194466211,0.18104462,110470.0,110460.0,0.43208303]
[1756194466427,0.94240859,110480.0,110460.0,0.43715303]
[1756194466841,0.94240859,110480.0,110470.0,0.18104462]
[1756194467042,0.94446859,110480.0,110470.0,0.18104462]
[1756194467497,0.94446859,110480.0,110470.0,0.00209]
[1756194467723,0.18104462,110470.0,110460.0,0.34360101]
[1756194467945,0.78286497,110470.0,110460.0,0.34062101]
[1756194468160,0.78492497,110470.0,110460.0,0.34271101]
[1756194468379,0.78492497,110470.0,110460.0,0.34569101]
[1756194468616,0.78492497,110470.0,110460.0,0.18613101]
[1756194468827,0.18104462,110470.0,110460.0,0.34569101]
[1756194469049,0.78492497,110470.0,110460.0,0.34669101]
[1756194469483,0.18104462,110470.0,110460.0,0.34669101]
[1756194470026,0.18310462,110470.0,110460.0,0.34669101]
[1756194470245,0.18310462,110470.0,110460.0,0.34869101]
[1756194470846,0.18104462,110470.0,110460.0,0.34869101]
[1756194471876,0.20824524,110480.0,110470.0,0.18104462]
[1756194472115,0.96958559,110480.0,110470.0,0.18313462]
[1756194472360,0.97156559,110480.0,110470.0,0.18611462]
[1756194473492,0.97156559,110480.0,110470.0,0.18711462]
[1756194473695,0.98004754,110480.0,110470.0,0.001]
[1756194474122,1.40196791,110480.0,110470.0,0.001]
[1756194474329,1.94381246,110480.0,110470.0,0.001]
[1756194474529,1.93533051,110480.0,110470.0,0.001]
[1756194474741,2.06116305,110480.0,110470.0,0.001]
[1756194475129,2.15262391,110480.0,110470.0,0.001]
[1756194475343,1.53746103,110480.0,110470.0,0.001]
[1756194475642,1.58698341,110480.0,110470.0,0.001]
[1756194476224,0.1810938,110440.0,110430.0,0.30627484]
[1756194476430,0.1810938,110440.0,110430.0,0.39980686]
[1756194477000,0.1810938,110440.0,110430.0,0.20964169]
[1756194477202,0.1830738,110440.0,110430.0,0.20657169]
[1756194477421,0.1830738,110440.0,110430.0,0.20964169]
[1756194477634,0.1810938,110440.0,110430.0,0.20968933]
[1756194478067,0.1810938,110440.0,110430.0,0.39079953]
[1756194479645,0.1810938,110440.0,110430.0,0.39179953]
[1756194479856,0.90337581,110450.0,110430.0,0.39179953]
[1756194480062,0.1831938,110440.0,110430.0,0.21068933]
[1756194480278,0.1810938,110440.0,110430.0,0.39179953]
[1756194480908,0.1810938,110440.0,110430.0,0.39079953]
[1756194481192,0.7711792,110440.0,110430.0,0.01232731]
[1756194481877,0.7711792,110440.0,110430.0,0.01746731]
[1756194482318,0.3405738,110440.0,110430.0,0.01746731]
[1756194482531,0.3426438,110440.0,110430.0,0.01232731]
[1756194483001,0.3426438,110440.0,110430.0,0.01332731]
[1756194484845,0.3405738,110440.0,110430.0,0.01846731]
[1756194485274,0.3405738,110440.0,110430.0,0.19957751]
[1756194485275,0.15944,110440.0,110430.0,0.19957751]
[1756194485568,0.31534041,110450.0,110430.0,0.19957751]
[1756194485796,0.18106518,110460.0,110440.0,0.27788949]
[1756194486015,0.34050518,110460.0,110450.0,0.18314741]
[1756194486238,0.36772718,110460.0,110450.0,0.18621741]
[1756194486666,0.20828718,110460.0,110450.0,0.18621741]
[1756194486923,0.36772718,110460.0,110450.0,0.18621741]
[1756194487116,0.027222,110460.0,110450.0,0.18621741]
[1756194487783,0.34941167,110470.0,110450.0,0.18721741]
[1756194487995,0.37663267,110470.0,110450.0,0.18721741]
[1756194488231,0.21719267,110470.0,110460.0,0.18413101]
[1756194488452,0.37663267,110470.0,110460.0,0.00514]
[1756194488666,0.18106101,110460.0,110450.0,0.27660943]
[1756194488882,0.18304101,110460.0,110450.0,0.18721741]
[1756194489368,0.18106101,110460.0,110450.0,0.18721741]
[1756194489802,0.18106101,110460.0,110450.0,0.18621741]
[1756194490230,0.96462807,110470.0,110460.0,0.18106101]
[1756194490231,0.187661,110470.0,110460.0,0.18106101]
[1756194490496,0.186661,110470.0,110460.0,0.18313101]
[1756194490711,0.186661,110470.0,110460.0,0.18620101]
[1756194490927,0.25967965,110480.0,110470.0,0.18104462]
[1756194491150,0.34951965,110480.0,110470.0,0.18618462]
[1756194491359,0.027218,110480.0,110470.0,0.18618462]
[1756194491570,0.21020624,110480.0,110470.0,0.18618462]
[1756194491835,0.20824624,110480.0,110470.0,0.18618462]
[1756194492015,0.18102824,110480.0,110470.0,0.18618462]
[1756194492228,0.18150511,110480.0,110470.0,0.18618462]
[1756194492648,0.18346511,110480.0,110460.0,0.34357101]
[1756194492799,0.18346511,110480.0,110470.0,0.00514]
[1756194493015,0.18346511,110480.0,110470.0,0.18618462]
[1756194493217,0.18346511,110480.0,110470.0,0.18718462]
[1756194493625,0.18346511,110480.0,110470.0,0.18618462]
[1756194494005,0.18150511,110480.0,110470.0,0.18618462]
[1756194494356,0.00047687,110480.0,110470.0,0.18618462]
[1756194494557,0.00047687,110480.0,110470.0,0.18718462]
[1756194495954,0.00047687,110480.0,110470.0,0.86664204]
[1756194497239,0.00047687,110480.0,110470.0,0.86564204]
[1756194497440,0.00047687,110480.0,110470.0,0.87914414]
[1756194497646,0.00047687,110480.0,110470.0,0.28064664]
[1756194497851,0.00047687,110480.0,110470.0,0.44200664]
[1756194498258,0.00047687,110480.0,110470.0,1.04350414]
[1756194498461,0.00047687,110480.0,110470.0,0.44200664]
[1756194503201,0.00047687,110480.0,110470.0,1.04350414]
[1756194504631,0.78498261,110480.0,110470.0,0.25578202]
[1756194504841,0.78498261,110480.0,110470.0,0.005]
[1756194505259,0.78498261,110480.0,110470.0,0.18604462]
[1756194505478,0.78498261,110480.0,110470.0,0.005]
[1756194505930,0.00245687,110480.0,110470.0,0.18814462]
[1756194506129,0.00047687,110480.0,110470.0,0.19109462]
[1756194506545,0.00047687,110480.0,110470.0,0.28255664]
[1756194507617,0.00245687,110480.0,110470.0,0.28255664]
[1756194507964,0.18348511,110480.0,110470.0,0.34532462]
[1756194508298,0.18348511,110480.0,110470.0,0.35037462]
[1756194508594,0.18348511,110480.0,110470.0,0.18899462]
[1756194508808,0.78498261,110480.0,110470.0,0.005]
[1756194509014,0.78738261,110480.0,110470.0,0.005]
[1756194509446,0.78498261,110480.0,110470.0,0.005]
[1756194509885,0.78498261,110480.0,110470.0,0.002]
[1756194510238,0.94426261,110480.0,110470.0,0.003]
[1756194510450,0.94426261,110480.0,110470.0,0.18404462]
[1756194510615,0.94426261,110480.0,110470.0,0.18204462]
[1756194510808,0.34276511,110480.0,110470.0,0.18414462]
[1756194511031,0.16173687,110480.0,110470.0,0.18809462]
[1756194511239,0.00245687,110480.0,110470.0,0.18809462]
[1756194511442,0.18150511,110480.0,110470.0,0.18809462]
[1756194511914,0.00047687,110480.0,110470.0,0.18809462]
[1756194512423,0.18150511,110480.0,110470.0,0.18809462]
[1756194512629,0.00047687,110480.0,110470.0,0.18809462]
[1756194513283,0.00047687,110480.0,110470.0,0.27955664]
[1756194513501,0.00047687,110480.0,110470.0,0.43378664]
[1756194513714,0.18348511,110480.0,110470.0,0.43378664]
[1756194513930,0.00047687,110480.0,110470.0,0.43883664]
[1756194517892,0.00047687,110480.0,110470.0,0.43879664]
[1756194518992,0.00047687,110480.0,110470.0,0.27450664]
[1756194519212,0.00263687,110480.0,110470.0,0.43584664]
[1756194519435,0.00047687,110480.0,110470.0,0.43879664]
[1756194521298,0.18150511,110480.0,110470.0,0.43879664]
[1756194521942,0.00047687,110480.0,110470.0,0.43879664]
[1756194523329,0.00047687,110480.0,110470.0,1.04029414]